bitfinex/quotes_BTCUSD_20220304
["timestamp","ask_amount","ask_price","bid_price","bid_amount"]
[1646376422202,0.035593,41338.0,41330.0,0.0486]
[1646376422898,0.035593,41338.0,41330.0,0.26352967]
[1646376423104,0.666844,41337.0,41330.0,0.0486]
[1646376423299,0.035593,41338.0,41330.0,0.0486]
[1646376423300,0.366844,41335.0,41330.0,0.0486]
[1646376423499,0.366844,41337.0,41330.0,0.0486]
[1646376424463,0.035593,41338.0,41330.0,0.0486]
[1646376424661,0.366844,41337.0,41332.0,0.20170708]
[1646376425263,0.366844,41337.0,41329.0,0.18271722]
[1646376425463,0.035593,41338.0,41329.0,0.18271722]
[1646376426463,1.1,41337.0,41331.0,0.15712989]
[1646376426664,1.1,41337.0,41328.0,0.09873171]
[1646376427262,1.1,41337.0,41330.0,0.20283167]
[1646376427698,0.366844,41336.0,41330.0,0.20283167]
[1646376427899,1.1,41337.0,41330.0,0.20283167]
[1646376428301,1.1,41337.0,41331.0,0.060543]
[1646376429101,0.3,41336.0,41327.0,0.0486]
[1646376429702,0.3,41336.0,41322.0,0.0486]
[1646376429899,0.3,41336.0,41325.0,0.121094]
[1646376430100,0.27432786,41334.0,41328.0,0.17109464]
[1646376430301,0.3,41336.0,41328.0,0.17109464]
[1646376430501,0.366844,41335.0,41328.0,0.17109464]
[1646376430702,0.3,41334.0,41328.0,0.17109464]
[1646376430907,0.3,41334.0,41325.0,0.169694]
[1646376430908,0.366844,41333.0,41325.0,0.169694]
[1646376431102,0.335593,41334.0,41325.0,0.169694]
[1646376431370,0.335593,41334.0,41328.0,0.26894414]
[1646376431546,0.335593,41334.0,41325.0,0.169694]
[1646376431947,0.335593,41334.0,41325.0,0.37724857]
[1646376432550,0.335593,41334.0,41326.0,0.219677]
[1646376432949,0.035593,41334.0,41328.0,0.18533057]
[1646376433249,0.75,41333.0,41326.0,0.219677]
[1646376433452,0.035593,41334.0,41332.0,0.20958772]
[1646376433852,0.001,41335.0,41333.0,0.415444]
[1646376434050,0.2452,41348.0,41334.0,1.52416]
[1646376434051,0.06209,41348.0,41334.0,1.52416]
[1646376434250,0.4843,41349.0,41335.0,0.08392]
[1646376434251,0.20719544,41347.0,41335.0,0.08392]
[1646376434449,0.19639,41349.0,41338.0,0.02416]
[1646376434450,0.01209,41349.0,41338.0,0.02416]
[1646376434650,0.047683,41356.0,41342.0,0.1778976]
[1646376434851,0.01209,41356.0,41346.0,0.060512]
[1646376435102,1.2,41354.0,41346.0,0.01202142]
[1646376435302,1.2,41354.0,41347.0,0.0486]
[1646376435303,0.366844,41353.0,41347.0,0.0486]
[1646376435499,1.2,41354.0,41347.0,0.0486]
[1646376435500,0.22239265,41351.0,41347.0,0.3179245]
[1646376435701,1.2,41354.0,41347.0,0.3179245]
[1646376436003,0.035593,41352.0,41347.0,0.3179245]
[1646376437702,0.01195367,41350.0,41347.0,0.3179245]
[1646376437902,0.01195367,41350.0,41348.0,0.16085496]
[1646376438202,0.01195367,41350.0,41349.0,0.0486]
[1646376439650,0.37879767,41350.0,41349.0,0.0486]
[1646376440049,0.01195367,41350.0,41349.0,0.0486]
[1646376440248,0.01195367,41350.0,41349.0,0.0736]
[1646376440650,0.01195367,41350.0,41349.0,0.27836877]
[1646376444198,0.01195367,41350.0,41349.0,0.0736]
[1646376445195,0.03779845,41347.0,41346.0,0.01202142]
[1646376445397,0.03779845,41347.0,41346.0,0.59999597]
[1646376445798,0.01195367,41350.0,41348.0,0.035172]
[1646376445998,0.01195367,41350.0,41347.0,0.366844]
[1646376446248,0.01195367,41350.0,41348.0,0.366835]
[1646376446452,0.01195367,41350.0,41347.0,0.366844]
[1646376447247,0.01195367,41350.0,41346.0,0.28175197]
[1646376447447,0.01195367,41350.0,41347.0,0.366844]
[1646376447648,0.01195367,41350.0,41346.0,0.28175197]
[1646376447848,0.01195367,41350.0,41347.0,0.366844]
[1646376448048,0.01195367,41350.0,41347.0,0.25135941]
[1646376448650,0.01195367,41350.0,41347.0,0.035152]
[1646376449251,0.01195367,41350.0,41347.0,0.060152]
[1646376449650,0.01195367,41350.0,41348.0,0.21354586]
[1646376449851,0.01195367,41350.0,41349.0,0.366835]
[1646376450313,0.01195367,41350.0,41349.0,0.5630038]
[1646376451516,0.01195367,41350.0,41349.0,0.366835]
[1646376453315,0.01195367,41350.0,41346.0,0.366844]
[1646376454144,0.01195367,41350.0,41346.0,0.427356]
[1646376454347,0.01195367,41350.0,41347.0,0.20536922]
[1646376454546,0.01195367,41350.0,41348.0,0.035171]
[1646376454745,0.21092796,41350.0,41348.0,0.035171]
[1646376454945,0.01195367,41350.0,41348.0,0.035171]
[1646376455147,0.01195367,41350.0,41346.0,0.181527]
[1646376455347,0.01195367,41350.0,41347.0,0.035162]
[1646376455547,0.01195367,41350.0,41346.0,0.181527]
[1646376455548,0.21092796,41350.0,41346.0,0.181527]
[1646376455849,0.21092796,41350.0,41347.0,0.366844]
[1646376456047,0.49686438,41350.0,41346.0,0.181527]
[1646376456249,0.29789009,41350.0,41346.0,0.181527]
[1646376456448,0.75,41349.0,41346.0,0.01499568]
[1646376457049,0.94897429,41349.0,41346.0,0.01499568]
[1646376457251,0.94897429,41349.0,41338.0,0.1802]
[1646376457252,0.86592129,41348.0,41338.0,0.1802]
[1646376457509,0.86592129,41348.0,41334.0,0.5666]
[1646376457510,0.19897429,41346.0,41340.0,0.060536]
[1646376457811,0.21203419,41344.0,41340.0,0.060536]
[1646376458010,0.366947,41343.0,41340.0,0.060536]
[1646376458612,0.56592129,41343.0,41340.0,0.060536]
[1646376458810,0.366947,41342.0,41340.0,0.060536]
[1646376459011,0.366947,41341.0,41340.0,0.060536]
[1646376459311,0.366947,41342.0,41340.0,0.060536]
[1646376459514,0.42472129,41344.0,41340.0,0.060536]
[1646376459710,0.56592129,41343.0,41340.0,0.060536]
[1646376459910,0.366947,41342.0,41340.0,0.060536]
[1646376460113,0.19897429,41343.0,41340.0,0.060536]
[1646376460310,0.366947,41342.0,41340.0,0.060536]
[1646376460914,0.19897429,41343.0,41340.0,0.060536]
[1646376462061,0.225747,41344.0,41340.0,0.060536]
[1646376462559,0.24920905,41343.0,41340.0,0.060536]
[1646376464664,0.24920905,41342.0,41340.0,0.060536]
[1646376464860,0.24920905,41341.0,41340.0,0.060536]
[1646376468017,0.005,41342.0,41341.0,0.035162]
[1646376468216,0.005,41342.0,41341.0,0.335162]
[1646376468416,0.19047588,41347.0,41342.0,0.8]
[1646376468616,0.13489,41355.0,41343.0,0.035155]
[1646376468846,0.035593,41353.0,41349.0,0.21823017]
[1646376469048,0.035593,41353.0,41348.0,0.28918356]
[1646376469648,0.004,41351.0,41348.0,0.28918356]
[1646376470051,0.004,41351.0,41349.0,0.95]
[1646376470250,0.004,41351.0,41350.0,0.53629112]
[1646376470447,0.004,41351.0,41348.0,0.28918356]
[1646376470850,0.34831176,41354.0,41348.0,0.28918356]
[1646376471649,0.34831176,41354.0,41349.0,0.20508803]
[1646376472252,0.34831176,41355.0,41350.0,0.38374]
[1646376472522,0.19909004,41352.0,41351.0,0.37960559]
[1646376472720,0.006,41358.0,41352.0,0.035131]
[1646376472721,0.35431176,41358.0,41352.0,0.035131]
[1646376472918,0.34831176,41358.0,41353.0,0.060499]
[1646376473119,0.035593,41363.0,41354.0,0.060499]
[1646376473120,0.34831176,41359.0,41354.0,0.060499]
[1646376473323,0.34831176,41360.0,41354.0,0.035126]
[1646376473520,0.34831176,41360.0,41353.0,0.3]
[1646376473821,0.34831176,41360.0,41353.0,0.301]
[1646376474022,0.34831176,41360.0,41354.0,0.035126]
[1646376474319,0.2423751,41362.0,41353.0,0.061499]
[1646376474320,0.34831176,41359.0,41353.0,0.061499]
[1646376475020,0.34831176,41359.0,41353.0,0.060499]
[1646376475225,0.34831176,41359.0,41355.0,0.181487]
[1646376476348,0.29861542,41356.0,41355.0,0.181487]
[1646376476752,0.34831176,41358.0,41355.0,0.181487]
[1646376477350,0.29865688,41356.0,41355.0,0.181487]
[1646376478751,0.34831176,41358.0,41355.0,0.181487]
[1646376478952,0.34831176,41358.0,41356.0,0.060498]
[1646376479998,0.34831176,41359.0,41356.0,0.060498]
[1646376480201,0.34831176,41359.0,41356.0,0.360498]
[1646376480410,0.29869858,41359.0,41358.0,1.1]
[1646376480699,0.003,41362.0,41360.0,0.216566]
[1646376480899,0.003,41362.0,41361.0,0.0486]
[1646376481099,0.2991,41371.0,41363.0,0.120975]
[1646376481299,0.035593,41369.0,41363.0,0.169575]
[1646376481501,0.23554465,41368.0,41363.0,0.169575]
[1646376484351,0.035593,41369.0,41363.0,0.169575]
[1646376484952,0.2488619,41364.0,41363.0,0.169575]
[1646376485152,0.2488619,41364.0,41363.0,0.204678]
[1646376485556,0.035593,41369.0,41363.0,0.204678]
[1646376485757,0.2488614,41364.0,41363.0,0.169575]
[1646376485955,0.2488614,41365.0,41363.0,0.204679]
[1646376486154,0.2488614,41365.0,41364.0,0.035105]
[1646376486354,0.2488614,41365.0,41360.0,0.07281548]
[1646376486555,0.19905322,41362.0,41360.0,0.07281548]
[1646376486756,0.19905322,41363.0,41361.0,0.47319124]
[1646376486956,0.19905322,41365.0,41362.0,0.420978]
[1646376487156,0.19905322,41366.0,41362.0,0.420978]
[1646376487604,0.19905322,41365.0,41362.0,0.420978]
[1646376487906,0.2488614,41368.0,41365.0,0.17555962]
[1646376488105,0.2488614,41368.0,41365.0,0.23604262]
[1646376488303,0.035593,41374.0,41366.0,0.3]
[1646376488304,0.2488614,41369.0,41366.0,0.3]
[1646376488505,0.2488614,41369.0,41366.0,0.3486]
[1646376488803,0.2488614,41369.0,41366.0,0.409084]
[1646376489205,0.46068618,41370.0,41366.0,0.409084]
[1646376489404,0.46068618,41370.0,41366.0,0.0486]
[1646376489905,0.2488614,41369.0,41366.0,0.0486]
[1646376490104,0.46068618,41370.0,41366.0,0.0486]
[1646376491758,0.21182478,41370.0,41366.0,0.0486]
[1646376492360,0.21182478,41370.0,41365.0,0.060483]
[1646376493362,0.21182478,41370.0,41362.0,0.120978]
[1646376493559,0.21182478,41370.0,41362.0,0.169578]
[1646376494158,0.21182478,41370.0,41365.0,0.060483]
[1646376494559,0.2488614,41371.0,41365.0,0.060483]
[1646376494759,0.2488614,41372.0,41365.0,0.12097]
[1646376495000,0.2488614,41372.0,41365.0,0.33962686]
[1646376495601,0.2488614,41373.0,41367.0,0.25513627]
[1646376495802,0.2844544,41374.0,41367.0,0.25513627]
[1646376496303,0.2844544,41374.0,41365.0,0.33962686]
[1646376497903,0.19891085,41372.0,41365.0,0.33962686]
[1646376498748,0.19891085,41372.0,41365.0,0.060487]
[1646376498952,0.19891085,41372.0,41362.0,0.169578]
[1646376499147,0.26445051,41363.0,41362.0,0.169578]
[1646376499346,0.19891085,41372.0,41362.0,0.169578]
[1646376499747,0.35294117,41370.0,41362.0,0.169578]
[1646376499951,0.35294117,41370.0,41360.0,0.120981]
[1646376499952,0.19891085,41369.0,41360.0,0.120981]
[1646376500147,0.035593,41368.0,41360.0,0.120981]
[1646376501547,0.20370446,41363.0,41360.0,0.120981]
[1646376503619,0.20370446,41363.0,41358.0,0.15774877]
[1646376506952,0.20370446,41363.0,41355.0,0.062504]
[1646376507251,0.20370446,41363.0,41355.0,0.002]
[1646376507252,0.035593,41361.0,41355.0,0.002]
[1646376507451,0.22901576,41361.0,41355.0,0.002]
[1646376507655,0.035593,41361.0,41353.0,0.601489]
[1646376508053,0.035593,41361.0,41357.0,0.20365261]
[1646376508453,0.40261531,41363.0,41357.0,0.26415161]
[1646376508654,0.19891085,41362.0,41357.0,0.26415161]
[1646376508854,0.40261531,41363.0,41357.0,0.26415161]
[1646376509256,0.19891085,41362.0,41357.0,0.20365261]
[1646376509457,0.19891085,41362.0,41351.0,0.3]
[1646376509755,0.035593,41361.0,41351.0,0.3]
[1646376510203,0.28122356,41356.0,41351.0,0.3]
[1646376510397,0.035593,41361.0,41351.0,0.3]
[1646376510598,0.23450385,41361.0,41353.0,0.17131978]
[1646376510798,0.19891085,41361.0,41353.0,0.17131978]
[1646376511602,0.19891085,41361.0,41353.0,0.441459]
[1646376511801,0.19891085,41360.0,41353.0,0.23181478]
[1646376512600,0.19891085,41360.0,41353.0,0.17131978]
[1646376513001,0.19891085,41359.0,41353.0,0.35049427]
[1646376513402,0.19891085,41359.0,41354.0,0.3]
[1646376514652,0.19891085,41358.0,41354.0,0.3]
[1646376514854,0.19891085,41358.0,41353.0,0.47131978]
[1646376515650,0.19891085,41358.0,41353.0,0.17131978]
[1646376515850,0.19891085,41357.0,41353.0,0.47131978]
[1646376516551,0.19891085,41357.0,41353.0,0.36879541]
[1646376517352,0.19891085,41357.0,41353.0,0.3684998]
[1646376517815,0.19891085,41356.0,41353.0,0.3684998]
[1646376523653,0.19891085,41356.0,41353.0,0.27658393]
[1646376523853,0.19891085,41356.0,41353.0,0.57658393]
[1646376524458,0.19891085,41356.0,41353.0,0.3684998]
[1646376524860,0.19891085,41355.0,41353.0,0.3684998]
[1646376525103,0.19891085,41355.0,41354.0,0.3]
[1646376526301,0.19891085,41355.0,41353.0,0.3684998]
[1646376526504,0.19891085,41354.0,41353.0,0.0684998]
[1646376526703,0.19891085,41354.0,41353.0,0.3684998]
[1646376526902,0.19891085,41355.0,41353.0,0.0684998]
[1646376527105,0.19891085,41354.0,41353.0,0.3684998]
[1646376527301,0.19891085,41356.0,41353.0,0.58051761]
[1646376527501,0.19891085,41357.0,41353.0,0.64101061]
[1646376527902,0.2488614,41359.0,41353.0,0.76199261]
[1646376527903,0.19891085,41358.0,41353.0,0.76199261]
[1646376528101,0.19891085,41359.0,41353.0,0.76199261]
[1646376528301,0.19891085,41360.0,41353.0,0.76199261]
[1646376529753,0.19891085,41360.0,41359.0,0.06863644]
[1646376529950,0.19891085,41360.0,41358.0,0.060486]
[1646376530152,0.19891085,41361.0,41358.0,0.060486]
[1646376530352,0.19891085,41361.0,41359.0,0.17196704]
[1646376531154,0.19891085,41361.0,41359.0,0.2309616]
[1646376531552,0.19891085,41360.0,41359.0,0.17196704]
[1646376532250,0.19891085,41360.0,41359.0,0.37858361]
[1646376532899,0.19891085,41360.0,41359.0,0.17196704]
[1646376533101,0.19891085,41361.0,41359.0,0.17196704]
[1646376533301,0.19891085,41361.0,41359.0,0.47196704]
[1646376533500,0.19891085,41361.0,41359.0,0.17196704]
[1646376534302,0.19891085,41361.0,41360.0,0.17641888]
[1646376534501,0.19891085,41361.0,41359.0,0.47196704]
[1646376535502,0.19891085,41361.0,41360.0,0.16132301]
[1646376535902,0.19891085,41361.0,41359.0,0.47196704]
[1646376536955,0.19891085,41361.0,41360.0,0.16951419]
[1646376537152,0.19891085,41361.0,41359.0,0.47196704]
[1646376538153,0.19891085,41361.0,41360.0,0.3]
[1646376538754,0.19891085,41361.0,41360.0,0.55125825]
[1646376540813,0.19891085,41361.0,41360.0,0.36732642]
[1646376541214,0.03714226,41362.0,41359.0,0.17196704]
[1646376541414,0.2488614,41361.0,41359.0,0.17196704]
[1646376542213,0.2488614,41361.0,41360.0,0.05669609]
[1646376542414,0.28600366,41362.0,41360.0,0.05669609]
[1646376542815,0.03714226,41362.0,41361.0,0.3]
[1646376543018,0.34825896,41368.0,41361.0,0.4089894]
[1646376543019,0.19928685,41363.0,41361.0,0.4089894]
[1646376543217,0.431393,41373.0,41362.0,0.3]
[1646376543218,0.19928685,41364.0,41362.0,0.3]
[1646376543415,0.29851339,41369.0,41362.0,0.3]
[1646376543416,0.19928685,41365.0,41363.0,0.0486]
[1646376543615,0.19927471,41365.0,41364.0,0.3]
[1646376543860,0.19927471,41365.0,41364.0,0.56060116]
[1646376544061,0.19927471,41365.0,41364.0,0.58560116]
[1646376544365,0.17427471,41365.0,41364.0,0.58560116]
[1646376544564,0.2488614,41369.0,41364.0,0.58560116]
[1646376544762,0.2488614,41369.0,41364.0,0.56060116]
[1646376544963,0.01208,41383.0,41364.0,0.56060116]
[1646376544964,0.34825896,41376.0,41369.0,0.02416]
[1646376545162,0.34825896,41381.0,41372.0,0.060462]
[1646376545365,0.34825896,41381.0,41373.0,0.42358234]
[1646376545565,0.34825896,41381.0,41373.0,0.1225013]
[1646376545786,0.34825896,41382.0,41377.0,0.15551729]
[1646376545962,0.34825896,41382.0,41372.0,0.060462]
[1646376546163,0.34825896,41382.0,41373.0,0.0486]
[1646376546363,0.34825896,41384.0,41373.0,0.0486]
[1646376546563,0.035593,41383.0,41373.0,0.0486]
[1646376546963,0.38385196,41384.0,41375.0,0.22968304]
[1646376547170,0.38385196,41384.0,41376.0,0.25071398]
[1646376547364,0.34825896,41384.0,41376.0,0.25071398]
[1646376547619,0.035593,41383.0,41376.0,0.25071398]
[1646376548323,0.57015994,41385.0,41376.0,0.25071398]
[1646376548521,0.27299388,41388.0,41381.0,0.17714851]
[1646376548522,0.34825896,41387.0,41381.0,0.17714851]
[1646376548726,0.38385196,41389.0,41381.0,0.22574851]
[1646376548921,0.035593,41389.0,41381.0,0.22574851]
[1646376549520,0.2335746,41388.0,41381.0,0.22574851]
[1646376550322,0.035593,41389.0,41381.0,0.22574851]
[1646376551261,0.27379348,41387.0,41381.0,0.22574851]
[1646376551661,0.29438648,41387.0,41381.0,0.0486]
[1646376552464,0.020593,41386.0,41381.0,0.0486]
[1646376552861,0.27379348,41387.0,41381.0,0.0486]
[1646376552862,0.020593,41383.0,41381.0,0.0486]
[1646376553662,0.020593,41383.0,41375.0,0.2483637]
[1646376553862,0.26991014,41376.0,41375.0,0.2483637]
[1646376554062,0.020593,41379.0,41375.0,0.2483637]
[1646376554262,0.020593,41379.0,41375.0,0.7483637]
[1646376554863,0.020593,41379.0,41375.0,0.6083637]
[1646376555305,0.25673633,41377.0,41375.0,0.6083637]
[1646376555704,0.25673633,41377.0,41375.0,0.5597637]
[1646376556706,0.020593,41379.0,41375.0,0.5597637]
[1646376557306,0.020593,41379.0,41375.0,0.1997637]
[1646376557906,0.020593,41379.0,41375.0,0.39116213]
[1646376558105,0.020593,41379.0,41375.0,0.1997637]
[1646376559057,0.020593,41379.0,41375.0,0.40502668]
[1646376559553,0.020593,41379.0,41375.0,0.1997637]
[1646376560155,0.020593,41379.0,41375.0,0.4997637]
[1646376560354,0.020593,41379.0,41375.0,0.1997637]
[1646376560756,0.020593,41379.0,41375.0,0.6997637]
[1646376562259,0.020593,41379.0,41375.0,0.5]
[1646376562513,0.21429485,41381.0,41375.0,0.5]
[1646376562514,0.020593,41376.0,41375.0,0.5]
[1646376562917,0.387532,41376.0,41375.0,0.5]
[1646376563115,0.59554867,41376.0,41375.0,0.5]
[1646376563414,0.65729418,41376.0,41375.0,0.5]
[1646376563714,0.65729418,41376.0,41361.0,0.3217]
[1646376563715,0.02416,41375.0,41361.0,0.8217]
[1646376563912,0.020593,41364.0,41361.0,0.5]
[1646376564112,0.19640449,41362.0,41361.0,0.5]
[1646376564512,0.020593,41364.0,41361.0,0.5]
[1646376565013,0.020593,41364.0,41360.0,0.21929482]
[1646376565613,0.020593,41364.0,41360.0,0.37695713]
[1646376566016,0.020593,41364.0,41360.0,0.21929482]
[1646376570403,0.020593,41364.0,41360.0,0.42265224]
[1646376570602,0.30820605,41366.0,41360.0,0.42265224]
[1646376570804,0.30820605,41366.0,41360.0,0.21929482]
[1646376571001,0.020593,41363.0,41360.0,0.21929482]
[1646376574871,0.28761305,41366.0,41360.0,0.21929482]
[1646376575273,0.020593,41364.0,41360.0,0.21929482]
[1646376575974,0.020593,41363.0,41360.0,0.21929482]
[1646376576176,0.020593,41366.0,41360.0,0.21929482]
[1646376576374,0.020593,41366.0,41363.0,0.16384083]
[1646376576677,0.020593,41368.0,41360.0,0.21929482]
[1646376576974,0.020593,41368.0,41362.0,0.07235703]
[1646376577706,0.020593,41368.0,41367.0,0.20816462]
[1646376577909,0.002,41374.0,41367.0,0.20816462]
[1646376578107,0.002,41374.0,41368.0,0.21043629]
[1646376578506,0.002,41374.0,41369.0,0.0486]
[1646376579309,0.117,41380.0,41374.0,0.21751376]
[1646376579507,0.020593,41375.0,41374.0,0.21751376]
[1646376580610,0.020593,41375.0,41370.0,0.3]
[1646376580807,0.020593,41375.0,41368.0,0.002]
[1646376581257,0.27761286,41371.0,41365.0,0.8486]
[1646376581660,0.27761286,41371.0,41365.0,1.01480903]
[1646376581859,0.020593,41375.0,41366.0,0.17099283]
[1646376582857,0.23658399,41374.0,41366.0,0.17099283]
[1646376583057,0.020593,41375.0,41366.0,0.17099283]
[1646376584159,0.24552756,41374.0,41366.0,0.17099283]
[1646376584361,0.020593,41375.0,41366.0,0.17099283]
[1646376584560,0.020593,41375.0,41372.0,0.17509505]
[1646376585407,0.20867176,41374.0,41366.0,0.17099283]
[1646376585603,0.020593,41375.0,41366.0,0.17099283]
[1646376586404,0.34834712,41381.0,41366.0,0.90769283]
[1646376586606,0.020593,41378.0,41376.0,0.21305639]
[1646376589856,0.020593,41378.0,41376.0,0.21296238]
[1646376590857,0.003,41381.0,41377.0,0.3]
[1646376591061,0.003,41381.0,41377.0,0.3486]
[1646376591262,0.05,41386.0,41378.0,0.25662065]
[1646376591462,0.020593,41388.0,41379.0,0.0486]
[1646376591759,0.34834712,41395.0,41388.0,0.18728615]
[1646376591760,0.020593,41389.0,41388.0,0.18728615]
[1646376591958,0.020593,41389.0,41388.0,0.23588615]
[1646376592159,0.015593,41389.0,41388.0,0.23588615]
[1646376594409,0.002,41395.0,41388.0,0.23588615]
[1646376594812,0.23812592,41391.0,41388.0,0.23588615]
[1646376595309,0.015593,41389.0,41388.0,0.23588615]
[1646376597668,0.0999,41396.0,41388.0,0.23588615]
[1646376597669,0.0999,41396.0,41389.0,0.7367]
[1646376597870,0.0999,41396.0,41391.0,0.7367]
[1646376598068,0.05,41407.0,41396.0,0.1998]
[1646376598268,0.1835,41409.0,41397.0,0.3486]
[1646376598675,0.1835,41409.0,41403.0,0.21654807]
[1646376598971,0.34556925,41414.0,41403.0,0.21654807]
[1646376598972,0.0999,41404.0,41403.0,0.21654807]
[1646376599171,0.0999,41404.0,41403.0,1.32600807]
[1646376599371,0.1304,41418.0,41403.0,1.32600807]
[1646376599372,0.01,41418.0,41403.0,2.06811507]
[1646376599570,0.01,41418.0,41406.0,0.213649]
[1646376599571,0.21553425,41418.0,41406.0,0.213649]
[1646376599770,0.22983281,41417.0,41408.0,0.28578003]
[1646376600020,0.29754848,41416.0,41409.0,0.0486]
[1646376600215,0.015593,41414.0,41410.0,0.0486]
[1646376600415,0.015593,41414.0,41411.0,0.0486]
[1646376600615,0.015593,41414.0,41412.0,0.0486]
[1646376600817,0.015593,41414.0,41413.0,0.0486]
[1646376606662,0.010593,41414.0,41413.0,0.0486]
[1646376608907,0.65,41413.0,41407.0,0.45304634]
[1646376609107,0.65,41413.0,41408.0,0.0486]
[1646376609108,0.010593,41411.0,41408.0,0.0486]
[1646376609908,0.5928152,41410.0,41404.0,0.003]
[1646376610109,0.010593,41405.0,41404.0,0.003]
[1646376610610,0.010593,41410.0,41404.0,0.003]
[1646376611009,0.28545796,41408.0,41404.0,0.003]
[1646376611262,0.010593,41410.0,41406.0,0.17057623]
[1646376611862,0.010593,41410.0,41400.0,0.5]
[1646376612068,0.010593,41410.0,41405.0,0.002]
[1646376612763,0.010593,41410.0,41407.0,0.15887376]
[1646376612963,0.24585485,41408.0,41407.0,0.15887376]
[1646376613166,0.010593,41410.0,41407.0,0.15887376]
[1646376614469,0.2348916,41408.0,41403.0,0.002]
[1646376615006,0.23480792,41408.0,41403.0,0.002]
[1646376615207,0.010593,41410.0,41402.0,0.5]
[1646376615407,0.010593,41410.0,41406.0,0.18788497]
[1646376616207,0.21866684,41408.0,41406.0,0.18788497]
[1646376617510,0.21866684,41408.0,41402.0,0.5]
[1646376618010,0.21866684,41408.0,41402.0,0.48719348]
[1646376619661,0.22925984,41408.0,41402.0,0.48719348]
[1646376620860,0.666939,41407.0,41402.0,0.48719348]
[1646376621065,0.010593,41403.0,41402.0,0.48719348]
[1646376621863,0.0486,41406.0,41402.0,0.48719348]
[1646376622065,0.366939,41404.0,41402.0,0.48719348]
[1646376622262,0.010593,41405.0,41402.0,0.48719348]
[1646376622708,0.366939,41404.0,41402.0,0.48719348]
[1646376622908,0.010593,41405.0,41402.0,0.48719348]
[1646376623108,0.366939,41403.0,41402.0,0.48719348]
[1646376623407,0.010593,41405.0,41402.0,0.48719348]
[1646376624208,0.366939,41404.0,41402.0,0.48719348]
[1646376624609,0.010593,41405.0,41402.0,0.48719348]
[1646376626381,0.010593,41405.0,41404.0,0.15725264]
[1646376626581,0.010593,41405.0,41404.0,0.18225264]
[1646376628082,0.377532,41405.0,41404.0,0.025]
[1646376629883,0.010593,41405.0,41404.0,0.025]
[1646376630310,0.377532,41405.0,41404.0,0.025]
[1646376630915,0.010593,41405.0,41404.0,0.025]
[1646376633016,0.21866684,41408.0,41404.0,0.025]
[1646376633216,0.21866684,41408.0,41402.0,0.64642747]
[1646376633217,0.010593,41405.0,41402.0,0.64642747]
[1646376633415,0.010593,41405.0,41404.0,0.025]
[1646376634466,0.001,41407.0,41404.0,0.025]
[1646376634664,0.001,41407.0,41402.0,0.64642747]
[1646376634865,0.301,41407.0,41402.0,0.64642747]
[1646376635265,0.001,41407.0,41402.0,0.64642747]
[1646376635466,0.010593,41405.0,41402.0,0.64642747]
[1646376635669,0.010593,41405.0,41404.0,0.025]
[1646376637807,0.010593,41405.0,41404.0,0.02491417]
[1646376638811,0.21866684,41408.0,41404.0,0.02491417]
[1646376639009,0.03571712,41409.0,41402.0,0.48719348]
[1646376639215,0.010593,41407.0,41402.0,0.48719348]
[1646376640110,0.25734771,41404.0,41402.0,0.48719348]
[1646376640310,0.25734771,41404.0,41403.0,0.02491417]
[1646376641582,2.39708973,41406.0,41403.0,0.02491417]
[1646376641785,2.39708973,41406.0,41402.0,0.98719348]
[1646376641982,2.39708973,41406.0,41402.0,0.48719348]
[1646376642183,2.39908973,41406.0,41402.0,0.48719348]
[1646376643184,0.002,41406.0,41402.0,0.48719348]
[1646376643385,0.010593,41407.0,41402.0,0.48719348]
[1646376644584,0.26384839,41407.0,41402.0,0.48719348]
[1646376644784,0.010593,41407.0,41402.0,0.48719348]
[1646376645029,0.002,41411.0,41402.0,0.48719348]
[1646376645428,0.05,41418.0,41402.0,0.83052857]
[1646376645629,0.169,41418.0,41402.0,0.83052857]
[1646376645827,0.26081514,41415.0,41402.0,0.83052857]
[1646376646027,0.26081514,41415.0,41403.0,0.29517064]
[1646376646028,0.25022214,41415.0,41403.0,0.29517064]
[1646376646229,0.25022214,41415.0,41403.0,0.5]
[1646376646428,0.25022214,41415.0,41404.0,0.29520143]
[1646376647130,0.25022214,41415.0,41407.0,0.16839591]
[1646376647330,0.010593,41411.0,41407.0,0.16839591]
[1646376647530,0.010593,41411.0,41406.0,0.5]
[1646376647730,0.25022214,41415.0,41406.0,0.5]
[1646376647934,0.010593,41411.0,41406.0,0.5]
[1646376648531,0.002,41413.0,41406.0,0.5]
[1646376648532,0.27296696,41408.0,41406.0,0.5]
[1646376649165,0.28355996,41408.0,41406.0,0.5]
[1646376650264,0.28355996,41408.0,41402.0,0.98719348]
[1646376651166,0.010593,41405.0,41402.0,0.98719348]
[1646376651763,0.366939,41404.0,41402.0,0.98719348]
[1646376651963,0.010593,41405.0,41402.0,0.98719348]
[1646376653213,0.010593,41405.0,41402.0,0.48719348]
[1646376654419,0.366939,41404.0,41402.0,0.48719348]
[1646376655014,0.010593,41405.0,41402.0,0.48719348]
[1646376660315,0.366939,41404.0,41402.0,0.48719348]
[1646376660513,0.010593,41405.0,41402.0,0.48719348]
[1646376660514,0.366939,41403.0,41402.0,0.48719348]
[1646376660712,0.366939,41404.0,41402.0,0.48719348]
[1646376660914,0.010593,41405.0,41402.0,0.48719348]
[1646376661315,0.366939,41404.0,41402.0,0.48719348]
[1646376661615,0.010593,41405.0,41402.0,0.48719348]
[1646376661816,0.366939,41404.0,41402.0,0.48719348]
[1646376662215,0.010593,41405.0,41402.0,0.48719348]
[1646376662415,0.010593,41405.0,41402.0,0.48711334]
[1646376667173,0.010593,41405.0,41403.0,0.18069663]
[1646376668439,0.010593,41405.0,41402.0,0.48711334]
[1646376669539,0.010593,41405.0,41402.0,0.64584014]
[1646376669739,0.010593,41405.0,41402.0,0.48711334]
[1646376670645,0.22268025,41409.0,41402.0,0.48711334]
[1646376670646,0.012593,41409.0,41405.0,0.1921284]
[1646376670942,0.012593,41409.0,41408.0,0.16721775]
[1646376671375,0.010593,41409.0,41408.0,0.16721775]
[1646376671772,2.45751909,41417.0,41408.0,0.16721775]
[1646376671773,0.28608678,41413.0,41408.0,0.16721775]
[1646376671972,0.377532,41412.0,41408.0,0.16721775]